Cogmind - Beta 11 X5 @@@ ROGUE MODE // 2021.07.11 @ 20:48:55 Player: Decinym Result: Destroyed by D-53 Grenadier with Mini Grenade Launcher Performance ------------- Evolutions (0) 0 Regions Visited (2) 400 Robots Destroyed (18) 90 Value Destroyed (454) 454 Prototype IDs (0) 0 Alien Tech Used (0) 0 Bonus (0) 0 TOTAL SCORE: 944 Bonus ------- None Cogmind --------- Core Integrity 0/250 Matter 267/300 Energy 125/125 System Corruption 0% Temperature Cool (0) Movement Core (350) Ox6 Location -10/Mines Parts ------- > --- POWER (1) -------- Light Ion Engine > --- PROPULSION (2) --- (None) > --- UTILITY (2) ------ Medium Storage Unit > --- WEAPON (2) ------- Medium Laser Rocket Launcher > --- INVENTORY (10) --- Light Nuclear Core Light Treads Aluminum Leg Wheel Compact Wheel Large Storage Unit Hacking Suite Rocket Launcher Mining Claw Peak State ------------ > --- POWER ------------ Ion Engine > --- PROPULSION ------- Aluminum Leg Aluminum Leg > --- UTILITY ---------- Medium Storage Unit > --- WEAPON ----------- Medium Laser Rocket Launcher > --- INVENTORY -------- Light Ion Engine Light Treads Light Treads Wheel Compact Wheel Large Storage Unit Medium Laser Light Assault Rifle Rocket Launcher [Rating: 8] Favorites ----------- Power Light Ion Engine Engine Light Ion Engine Propulsion Light Treads Treads Light Treads Leg Aluminum Leg Utility Medium Storage Unit Storage Medium Storage Unit Weapon Medium Laser Energy Gun Medium Laser Ballistic Gun Light Assault Rifle Launcher Rocket Launcher Build | -11 -10 -10 ------- Run | Scr Mat Min Slots Evolved . | . . . Power . | . . . Propulsion . | . . . Utility . | . . . Weapon . | . . . Parts Attached 9 | . 8 1 Power 1 | . 1 . Engine 1 | . 1 . Core . | . . . Reactor . | . . . Propulsion 2 | . 2 . Treads 2 | . 2 . Leg . | . . . Wheel . | . . . Hover . | . . . Flight . | . . . Utility 2 | . 2 . Device . | . . . Storage 2 | . 2 . Processor . | . . . Hackware . | . . . Protection . | . . . Artifact . | . . . Weapon 4 | . 3 1 Energy Gun 1 | . 1 . Energy Cannon . | . . . Ballistic Gun 1 | . 1 . Ballistic Cannon . | . . . Launcher 2 | . 1 1 Special Weapon . | . . . Impact Weapon . | . . . Slashing Weapon . | . . . Piercing Weapon . | . . . Special Melee Weapon . | . . . Unidentified Prototypes . | . . . Parts Lost 6 | . 3 3 Power 1 | . 1 . Propulsion 3 | . 1 2 Utility . | . . . Weapon 2 | . 1 1 Highest Loss Streak 3 | . 3 3 Average Slot Usage (%) 83 | . 83 78 Engine 13 | . 13 14 Treads 14 | . 13 28 Leg 13 | . 14 . Storage 14 | . 14 14 Energy Gun 13 | . 13 14 Ballistic Gun 13 | . 13 7 Naked Turns . | . . . Heaviest Build 28 | 13 28 16 Greatest Support 40 | 20 40 40 Greatest Overweight (x) 1 | . 1 . Average Overweight (x) . | . . . Largest Inventory Capacity 15 | . 15 10 Average Capacity 10 | . 10 10 Most Carried 10 | . 10 10 Average Carried 8 | . 8 9 Final Capacity 10 | 8 10 10 Final Carried 10 | 6 10 9 Class Distribution -------------------- 100% | Mutant Dominant Class ---------------- Mutant | -10/Materials Mutant | -10/Mines Resources | -11 -10 -10 ----------- Run | Scr Mat Min Matter Collected 395 | 200 104 91 Remotely . | . . . Salvage Created 467 | . 467 . Parts 37 | . 37 . Haulers Intercepted 1 | . 1 . Recyclers Shooed 2 | . 1 1 Parts Field Recycled . | . . . Retrieved Matter . | . . . Parts Self-Destructed . | . . . Prevented . | . . . Kills | -11 -10 -10 ------- Run | Scr Mat Min Combat Hostiles Destroyed 12 | . 12 . Guns 8 | . 8 . AOE 4 | . 4 . Classes Destroyed 6 | . 6 . Hauler 1 | . 1 . Recycler 1 | . 1 . Operator 2 | . 2 . Watcher 2 | . 2 . Swarmer 3 | . 3 . Grunt 9 | . 9 . Best Kill Streak 9 | . 9 . Combat Bots Only 5 | . 5 . Max Kills in Single Turn 2 | . 2 . Gunslinging . | . . . Exploded 1 | . 1 . Melee . | . . . Uniques/NPCs Destroyed . | . . . Combat | -11 -10 -10 -------- Run | Scr Mat Min Damage Taken 1103 | . 688 415 Core 283 | . 153 130 Absorbed by Shields . | . . . Core Remaining (%) 100 | 100 . . Volleys Fired 54 | . 50 4 Largest 2 | . 2 2 Hottest 70 | . 70 70 Shots Fired 96 | . 91 5 Gun 85 | . 83 2 Cannon . | . . . Launcher 11 | . 8 3 Special . | . . . Kinetic 43 | . 42 1 Thermal 42 | . 41 1 Explosive 11 | . 8 3 Electromagnetic . | . . . Robot Hit Streak 6 | . 6 2 Robot Miss Streak 4 | . 4 1 Penetration Max . | . . . Secondary Targets 3 | . 3 . Max Gunslinging Chain 1 | . 1 . Shots Hit Robots 52 | . 49 3 Core Hits 41 | . 35 6 Critical Kills . | . . . Critical Parts Destroyed . | . . . Critical Strikes 1 | . 1 . Burn 1 | . 1 . Melee Attacks . | . . . Impact . | . . . Slashing . | . . . Piercing . | . . . Sneak Attacks . | . . . Combat Hostiles . | . . . Follow-up Attacks . | . . . Damage Inflicted 1160 | . 1059 101 Guns 462 | . 441 21 Cannons . | . . . Explosions 698 | . 618 80 Melee . | . . . Ramming . | . . . Kinetic 199 | . 190 9 Thermal 263 | . 251 12 Explosive 658 | . 578 80 Electromagnetic 40 | . 40 . Impact . | . . . Slashing . | . . . Piercing . | . . . Highest Corruption . | . . . Average Corruption . | . . . Corruption Purged . | . . . Overload Shots . | . . . Overflow Damage 10 | . 10 . Projectiles . | . . . Explosions 10 | . 10 . Melee . | . . . Knockbacks . | . . . Impact . | . . . Kinetic . | . . . Secondary . | . . . Self-Inflicted Damage 13 | . 13 . Shots 2 | . 2 . Rammed . | . . . Targets Rammed . | . . . Kicked . | . . . Crushed . | . . . Highest Temperature 317 | . 317 30 Average Temperature 95 | . 96 18 Received Heat Transfer 384 | . 384 . Effects 1 | . 1 . Energy Bleed 1 | . 1 . Siege Activations . | . . . Robots Corrupted . | . . . Combat Hostiles . | . . . Parts Fried . | . . . Impact Corruptions . | . . . Robots Melted . | . . . Combat Hostiles . | . . . Parts Melted . | . . . Heat Transferred 851 | . 814 37 Parts Sabotaged . | . . . Parts Stolen . | . . . Parts Stripped . | . . . Power Chain Reactions . | . . . Missiles Intercepted . | . . . Alert | -11 -10 -10 ------- Run | Scr Mat Min Peak Influence 336 | . 336 52 Initial 52 | . . 52 Average 193 | . 199 44 Maximum Alert Level 1 | . 1 . Low Security (%) 52 | . 49 100 Level 1 47 | . 50 . Level 2 . | . . . Level 3 . | . . . Level 4 . | . . . Level 5 . | . . . High Security . | . . . Max Security . | . . . Squads Dispatched 3 | . 3 . Investigation . | . . . Extermination . | . . . Reinforcement 3 | . 3 . Assault . | . . . Garrison . | . . . Intercept . | . . . Construction Impeded . | . . . Haulers Reinforced . | . . . Cargo Convoy Interrupts . | . . . Stealth | -11 -10 -10 --------- Run | Scr Mat Min Distress Signals 2 | . 2 . Communications Jammed . | . . . Distress Signals . | . . . Times Spotted 22 | . 20 2 Peak Tracking Total 6 | . 6 2 Tactical Retreats . | . . . Traps | -11 -10 -10 ------- Run | Scr Mat Min Traps Triggered . | . . . Indirectly . | . . . Trap Hack Attempts . | . . . Triggered . | . . . Disarmed . | . . . Reprogrammed . | . . . Reused . | . . . Traps Extracted . | . . . Installed . | . . . Triggered . | . . . Machines | -11 -10 -10 ---------- Run | Scr Mat Min Machines Disabled 2 | . 2 . Max in Single Turn 1 | . 1 . Machines Sabotaged . | . . . Garrisons Compromised . | . . . Overloaded Fab Kills . | . . . Fab Network Shutdowns . | . . . Hacking | -11 -10 -10 --------- Run | Scr Mat Min Machines Accessed . | . . . Terminals . | . . . Fabricators . | . . . Repair Stations . | . . . Recycling Units . | . . . Scanalyzers . | . . . Garrison Access . | . . . Total Hacks . | . . . Successful . | . . . Failed . | . . . Catastrophic . | . . . Database Lockouts . | . . . Manual . | . . . Terminals . | . . . Fabricators . | . . . Repair Stations . | . . . Recycling Units . | . . . Scanalyzers . | . . . Garrison Access . | . . . Terminal Hacks . | . . . Fabricator Hacks . | . . . Repair Station Hacks . | . . . Recycling Unit Hacks . | . . . Scanalyzer . | . . . Garrison Access Hacks . | . . . Unauthorized Hacks . | . . . Terminals . | . . . Fabricators . | . . . Repair Stations . | . . . Recycling Units . | . . . Scanalyzers . | . . . Garrison Access . | . . . Data Cores Recovered . | . . . Used . | . . . Hacking Detections . | . . . Full Trace Events . | . . . Feedback Events . | . . . Feedback Blocked . | . . . Robot Schematics Acquired . | . . . Robots Built . | . . . Matter . | . . . Time . | . . . Total Robot Build Rating . | . . . Part Schematics Acquired . | . . . Parts Built . | . . . Matter . | . . . Time . | . . . Total Part Build Rating . | . . . Parts Repaired . | . . . Time . | . . . Parts Recycled . | . . . Recycled Matter . | . . . Retrieved Matter . | . . . Retrieved Components . | . . . Parts Scanalyzed . | . . . Part Schematics Acquired . | . . . Parts Damaged . | . . . Bothacking | -11 -10 -10 ------------ Run | Scr Mat Min Used RIF Installer . | . . . Robots Hacked . | . . . Non-combat . | . . . Combat . | . . . Robot Hacks Applied . | . . . Relay Couplers Released . | . . . Robots Rewired . | . . . Allies Hacked . | . . . Hacks Repelled . | . . . Allies | -11 -10 -10 -------- Run | Scr Mat Min Total Allies . | . . . Largest Group . | . . . Highest-Rated Group . | . . . Highest-Rated Ally . | . . . Total Orders . | . . . Ally Attacks . | . . . Total Damage . | . . . Kills . | . . . Allies Corrupted . | . . . Allies Melted . | . . . Intel | -11 -10 -10 ------- Run | Scr Mat Min Robot Analysis Total . | . . . Derelict Logs Recovered . | . . . Drone Launches . | . . . Drone Recoveries . | . . . Exploration | -11 -10 -10 ------------- Run | Scr Mat Min Turns Passed 436 | . 417 19 Spaces Moved 195 | 1 188 6 Core . | . . . Treads 108 | . 102 6 Legs 87 | 1 86 . Wheels . | . . . Hover . | . . . Flight . | . . . Fastest Speed 120 | 120 120 160 Average Speed 142 | 120 142 160 Slowest Speed 200 | 120 200 160 Overloaded Moves . | . . . Propulsion Burnouts . | . . . Robots Hopped . | . . . Cave-ins Triggered . | . . . Exploration Rate (%) 19 | 2 50 5 Regions Visited 2 Branch Regions 1 Pre-discovered Areas . | . . . Known Exits Taken . | . . . Unknown Exits Taken 2 | 1 1 . Scrap Searched . | . . . Spaces Dug . | . . . Terrain Destroyed 58 | . 32 26 Melee . | . . . Projectile . | . . . AOE 58 | . 32 26 Terrain Rammed . | . . . Walls Destroyed . | . . . Machines Disabled . | . . . Actions | -11 -10 -10 --------- Run | Scr Mat Min Total 264 | . 253 11 Wait . | . . . Move 193 | . 187 6 Hop . | . . . Pick Up 6 | . 6 . Fast Attach 2 | . 2 . Attach 4 | . 3 1 Detach 1 | . 1 . Swap 3 | . 3 . Drop 1 | . 1 . Fire 54 | . 50 4 Melee . | . . . Ram . | . . . Kick . | . . . Crush . | . . . Escape Stasis . | . . . Rewire . | . . . Trap . | . . . Miscellaneous . | . . . Route ------- -11/Scrapyard -10/Materials (discovered 2 exits: [*Mat] / [*Min]) -10/Mines History --------- Turn | Location | Event 1 | -11/Scrapyard | Discovered new exit (range 0) 1 | -11/Scrapyard | Entered Materials 229 | -10/Materials | Core integrity fell below 50% 239 | -10/Materials | Lost 3 parts (1p1n1w) 309 | -10/Materials | Build established: Mutant 357 | -10/Materials | Discovered new exit (range 4) 402 | -10/Materials | Discovered new exit (range 8) 418 | -10/Materials | Entered Mines 419 | -10/Mines | Assembled infested the area 424 | -10/Mines | Assisted by a Guerilla fighting off Assembled 430 | -10/Mines | Core integrity fell below 20% 437 | -10/Mines | Destroyed by D-53 Grenadier with Mini Grenade Launcher Last Messages --------------- 00355_ K-01 Serf collects debris. 00357_ EXIT=FOUND 00358_ K-01 Serf cleans the Terminal. 00402_ EXIT=FOUND LOCATION=UNKNOWN GOAL=ESCAPE Something is scanning the area. 00418_ Acquired 91 matter. 00419_ ALERT: Infestation in the mines, dispatching Demolisher response squad. 00424_ A derelict emerges from the shadows: "You need to get out of here! I've been tracking a group of Assembled to figure out where they're coming from, and they're closing on this area, come on!" 00427_ D-53 Grenadier unfolds itself. 00427_ G5-LU9(h) destroyed. 00429_ Lgt. Assault Rifle destroyed. 00433_ The unstable cave ceiling collapses. 00433_ Lgt. Treads destroyed. 00435_ The unstable cave ceiling collapses. 00435_ Lgt. Treads destroyed. Map ----- +----------------------------------------------------+ | ????????????????????????????????????????????????? | | ????????????????????????????????????????????????? | | ????????????????????????????????????????????????? | | ????????????????????????????????????????????????? | | ????????????????????????????????????????????????? | | ????????????????????????????????????????????????? | | ????????????????????????????????????????????????? | | ????????????????????????????????????????????????? | | ????????????????????????????????????????????????? | | ????????????????????????????????????????????????? | | ????????????????????????????????????????????????? | | ????????????????????????????????????????????????? | | ????????????????????????????????????????????????? | | ????????????????????????????????????????????????? | | ????????????????????????????????????????????????? | | ????????????????????????????????????????????????? | | ????????????????????????????????????????????????? | | ??????????????##????????????????????????????????? | | ??????????????? ???????????????????????????????? | | ????????????????# ######????????????????????????? | | ?????????????##?# ####????????????????????? | | ?????????????# # ##???????????????????? | | ?????????????# ##??????????????????? | | ?????????????# ] #??????????????????? | | ?????????????# d ########????????????? | | ?????????????# %d @ ?????? | | ?????????????# ## ####????????????? | | ????????????# #??????????????????? | | ????????????## r ##??????????????????? | | ?????????????# ###### ##???????????????????? | | ????????????# ???????#######????????????????????? | | ????????????????????????????????????????????????? | | ????????????????????????????????????????????????? | | ????????????????????????????????????????????????? | | ????????????????????????????????????????????????? | | ????????????????????????????????????????????????? | | ????????????????????????????????????????????????? | | ????????????????????????????????????????????????? | | ????????????????????????????????????????????????? | | ????????????????????????????????????????????????? | | ????????????????????????????????????????????????? | | ????????????????????????????????????????????????? | | ????????????????????????????????????????????????? | | ????????????????????????????????????????????????? | | ????????????????????????????????????????????????? | | | | | | | | | | | +----------------------------------------------------+ Best States ------------- Heat Dissipation 25 Energy Generation 10 Energy Capacity 250 Matter Stores 300 Matter Capacity 300 Sight Range 16 Terrain Scan Density 10 Evasion (%) 55 Recoil Reduction 2 Item Schematics ----------------- None Robot Schematics ------------------ None Fabricated ------------ Nothing Alien Tech Used ----------------- None Achievements -------------- None Challenges ------------ None Game ------ Seed MiniHardcellCarapace Manual? 0 Play Time 00:03:40 Cumulative 362.5 hours Start 2021.07.11 @ 20:45:11 End 2021.07.11 @ 20:48:55 Sessions 1 Manual Loads 0 Difficulty Rogue Special Mode None Game No. 395 Rogue 395 Adventurer 0 Explorer 0 Win Type - Total 32 Types 17/5/2/1/2/1/3/1/0 Lore% 93 Gallery% 88 Achievement% 80 Wizard Run 0 Options --------- ASCII 0 Keyboard 0 Movement Arrows Keybinds 0 Fullscreen 2 Font 18/Terminus Map View 76x50 Tactical HUD 1 Map Filters NONE Filters NONE Steam 1 RUN: a4276ae9-e422-4ad4-b1f8-deb96a5015b3